bitfinex/quotes_BTCUSD_20240731
["timestamp","ask_amount","ask_price","bid_price","bid_amount"]
[1722457575681,0.00091301,64828.0,64827.0,1.39514672]
[1722457575890,0.00091301,64828.0,64827.0,1.59804672]
[1722457576309,0.00091301,64828.0,64827.0,1.60804672]
[1722457576724,0.00091301,64828.0,64827.0,1.62804672]
[1722457576934,0.00091301,64845.0,64827.0,1.62804672]
[1722457576935,0.00091301,64845.0,64844.0,1.179512]
[1722457577145,0.00091301,64845.0,64844.0,1.48996372]
[1722457577345,0.00091301,64845.0,64844.0,1.58996372]
[1722457577522,0.00091301,64845.0,64844.0,3.08996372]
[1722457577972,0.00091301,64845.0,64844.0,1.98745172]
[1722457578181,0.00091301,64845.0,64844.0,2.14166772]
[1722457578384,0.00091301,64845.0,64844.0,3.08996372]
[1722457578604,0.00191301,64845.0,64844.0,3.09496372]
[1722457578820,0.00191301,64845.0,64844.0,2.78653172]
[1722457579034,0.00091301,64845.0,64844.0,2.16466772]
[1722457579239,0.00091301,64845.0,64844.0,1.85555172]
[1722457579240,0.00191301,64845.0,64844.0,1.85555172]
[1722457579440,0.00191301,64845.0,64844.0,0.25555172]
[1722457579647,0.00191301,64845.0,64844.0,0.40976772]
[1722457579858,0.00191301,64845.0,64844.0,0.71819972]
[1722457580066,0.00191301,64845.0,64844.0,1.33506372]
[1722457580270,0.00191301,64845.0,64844.0,1.50836372]
[1722457580482,0.00191301,64845.0,64844.0,1.59016372]
[1722457580891,0.00191301,64845.0,64844.0,1.61316372]
[1722457581097,0.00091301,64845.0,64844.0,1.93559572]
[1722457581298,0.00091301,64845.0,64844.0,1.60716372]
[1722457581505,0.00091301,64845.0,64844.0,1.63316372]
[1722457581506,0.00191301,64845.0,64844.0,1.63316372]
[1722457581718,0.00191301,64845.0,64844.0,3.13316372]
[1722457581929,0.00091301,64845.0,64844.0,3.12716372]
[1722457582076,0.00091301,64845.0,64844.0,3.11516372]
[1722457582283,0.00091301,64845.0,64844.0,3.13516372]
[1722457582284,0.00191301,64845.0,64844.0,3.13516372]
[1722457582488,0.00191301,64845.0,64844.0,3.13716252]
[1722457582696,0.07476412,64861.0,64858.0,0.1]
[1722457582996,0.07476412,64861.0,64860.0,0.61208572]
[1722457583152,0.075459,64882.0,64872.0,0.154149]
[1722457583359,0.075459,64882.0,64872.0,1.02029872]
[1722457583360,0.009559,64882.0,64872.0,1.02029872]
[1722457583559,0.009559,64882.0,64872.0,1.39635506]
[1722457583728,0.009559,64882.0,64872.0,0.44845806]
[1722457583877,0.009559,64882.0,64872.0,0.75675706]
[1722457584123,0.009559,64882.0,64872.0,1.02029872]
[1722457584354,0.009559,64882.0,64872.0,0.71199972]
[1722457584555,0.07576412,64873.0,64872.0,0.71899972]
[1722457584802,0.07576412,64873.0,64872.0,1.13729872]
[1722457585137,0.009559,64882.0,64879.0,0.870665]
[1722457585343,0.009559,64882.0,64879.0,2.92848272]
[1722457585544,0.009559,64882.0,64879.0,2.95148272]
[1722457585747,0.009559,64882.0,64879.0,2.64321672]
[1722457585966,0.009559,64882.0,64879.0,2.95148272]
[1722457587112,0.009559,64882.0,64879.0,2.95648272]
[1722457587553,0.009559,64882.0,64879.0,2.95148272]
[1722457587993,0.07576412,64880.0,64879.0,2.96348272]
[1722457588168,0.07576412,64880.0,64879.0,2.97282931]
[1722457588367,0.0998446,64880.0,64879.0,2.96082931]
[1722457588909,0.0998446,64880.0,64879.0,1.46082931]
[1722457589802,0.1008446,64880.0,64879.0,1.30796231]
[1722457590279,0.0998446,64880.0,64879.0,1.29496231]
[1722457590623,0.1008446,64880.0,64879.0,1.30696231]
[1722457591107,0.0998446,64880.0,64879.0,1.29496231]
[1722457591530,0.1008446,64880.0,64879.0,1.30796231]
[1722457592369,0.1008446,64880.0,64879.0,0.99969631]
[1722457592531,0.1008446,64880.0,64879.0,0.32603131]
[1722457592772,0.0998446,64880.0,64879.0,0.14955172]
[1722457592941,0.1018446,64880.0,64879.0,0.17555172]
[1722457593142,0.1008446,64880.0,64879.0,0.16155172]
[1722457593566,0.1008446,64880.0,64879.0,0.16355172]
[1722457593725,0.1018446,64880.0,64879.0,0.15555172]
[1722457593960,0.1018446,64880.0,64879.0,0.92929916]
[1722457594402,0.1008446,64880.0,64879.0,0.92329916]
[1722457594624,0.02908048,64880.0,64879.0,1.04321672]
[1722457594827,0.03008048,64880.0,64879.0,1.46248272]
[1722457595026,0.03008048,64880.0,64879.0,1.15421672]
[1722457595472,0.03008048,64880.0,64879.0,0.84595072]
[1722457595671,0.03008048,64880.0,64879.0,1.15421672]
[1722457595951,0.00591301,64880.0,64879.0,0.82295072]
[1722457596178,0.00091301,64880.0,64879.0,1.12021672]
[1722457596414,0.00191301,64880.0,64879.0,1.13021672]
[1722457596647,0.00291301,64880.0,64879.0,1.14421672]
[1722457596896,0.00091301,64880.0,64879.0,1.12021672]
[1722457597127,0.00191301,64880.0,64879.0,1.12721672]
[1722457597325,0.00291301,64880.0,64879.0,0.83295072]
[1722457597530,0.00291301,64880.0,64879.0,1.14121672]
[1722457597746,0.00191301,64880.0,64879.0,1.13421672]
[1722457598282,0.00191301,64880.0,64879.0,1.13021672]
[1722457598758,0.00191301,64880.0,64879.0,1.15321672]
[1722457599160,0.02508097,64880.0,64879.0,1.14321672]
[1722457599381,0.02508097,64880.0,64879.0,1.45148272]
[1722457599630,0.02708097,64880.0,64879.0,1.47148272]
[1722457599838,0.02608097,64880.0,64879.0,1.45748272]
[1722457600042,0.02708097,64880.0,64879.0,1.47148272]
[1722457600294,0.00191301,64880.0,64879.0,1.45148272]
[1722457600504,0.00291301,64880.0,64879.0,1.15321672]
[1722457600707,0.00391301,64880.0,64879.0,1.16721672]
[1722457600916,0.00191301,64880.0,64879.0,1.45148272]
[1722457601120,0.00291301,64880.0,64879.0,1.46548272]
[1722457602178,0.00291301,64880.0,64879.0,1.15721672]
[1722457602379,0.00291301,64880.0,64879.0,1.15621672]
[1722457602380,0.00191301,64880.0,64879.0,1.15621672]
[1722457602809,0.00191301,64880.0,64879.0,1.17021672]
[1722457603009,0.00191301,64880.0,64879.0,1.15621672]
[1722457603443,0.00291301,64880.0,64879.0,1.47848272]
[1722457603857,0.00291301,64880.0,64879.0,1.55678272]
[1722457604287,0.00291301,64880.0,64879.0,1.24851672]
[1722457604700,0.00291301,64880.0,64879.0,1.25807572]
[1722457604912,0.02708083,64880.0,64879.0,1.25807572]
[1722457605326,0.00291301,64880.0,64879.0,1.47727572]
[1722457605536,0.00291301,64880.0,64879.0,1.78554172]
[1722457605745,0.00291301,64880.0,64879.0,1.47727572]
[1722457606374,0.00291301,64880.0,64879.0,1.78554172]
[1722457606999,0.00291301,64880.0,64879.0,1.47727572]
[1722457607643,0.00291301,64880.0,64879.0,1.39897572]
[1722457607853,0.02708107,64880.0,64879.0,1.39897572]
[1722457608099,0.02708107,64880.0,64879.0,1.70724172]
[1722457608511,0.00291301,64880.0,64879.0,1.70724172]
[1722457608686,0.00291301,64880.0,64879.0,1.39897572]
[1722457609063,0.00291301,64880.0,64879.0,1.37597572]
[1722457611303,0.00091301,64880.0,64879.0,1.37597572]
[1722457611509,0.02508139,64880.0,64879.0,1.37597572]
[1722457611729,0.02508139,64880.0,64879.0,1.68424172]
[1722457612132,0.02508139,64880.0,64879.0,1.70724172]
[1722457612536,0.00091301,64880.0,64879.0,1.70724172]
[1722457612797,0.00091301,64880.0,64879.0,1.69424172]
[1722457613045,0.009559,64882.0,64881.0,0.77064]
[1722457613246,0.009559,64882.0,64881.0,0.92019172]
[1722457614494,0.010559,64882.0,64881.0,0.93419172]
[1722457614700,0.010559,64882.0,64881.0,0.99599172]
[1722457615144,0.010559,64882.0,64881.0,1.24244772]
[1722457615359,0.011559,64882.0,64881.0,0.94619172]
[1722457615587,0.011559,64882.0,64881.0,1.25444772]
[1722457615732,0.011559,64882.0,64881.0,0.94619172]
[1722457617499,0.011559,64882.0,64881.0,0.63793572]
[1722457617650,0.0131132,64882.0,64881.0,0.63793572]
[1722457618233,0.0131132,64882.0,64881.0,0.94619172]
[1722457618440,0.011559,64882.0,64881.0,0.63793572]
[1722457618649,0.0131132,64882.0,64881.0,0.63793572]
[1722457619305,0.0131132,64882.0,64881.0,0.32967972]
[1722457619512,0.0131132,64882.0,64881.0,0.94619172]
[1722457619706,0.0131132,64882.0,64881.0,0.17555172]
[1722457619918,0.0131132,64882.0,64881.0,0.63793572]
[1722457620110,0.03572739,64882.0,64881.0,0.63793572]
[1722457620518,0.011559,64882.0,64881.0,0.63793572]
[1722457620728,0.011559,64882.0,64881.0,0.17555172]
[1722457620937,0.23396055,64882.0,64881.0,0.17555172]
[1722457621145,0.29330342,64882.0,64881.0,0.17555172]
[1722457621351,0.29174922,64882.0,64881.0,0.17555172]
[1722457621557,0.29074922,64882.0,64881.0,0.16355172]
[1722457621833,0.17060635,64882.0,64881.0,0.62593572]
[1722457621971,0.23098247,64882.0,64881.0,0.63693572]
[1722457622172,0.23098247,64882.0,64881.0,0.94519172]
[1722457622375,0.011559,64882.0,64881.0,0.94519172]
[1722457622573,0.009559,64882.0,64881.0,0.92019172]
[1722457622818,0.009559,64882.0,64881.0,0.92519172]
[1722457623048,0.010559,64882.0,64881.0,0.93919172]
[1722457623228,0.009559,64882.0,64881.0,1.02519172]
[1722457623563,0.010559,64882.0,64881.0,1.03919172]
[1722457623729,0.03472785,64882.0,64881.0,1.03919172]
[1722457623930,0.03472785,64882.0,64881.0,1.06219172]
[1722457624352,0.03472785,64882.0,64881.0,1.36544772]
[1722457624509,0.03572785,64882.0,64881.0,1.06819172]
[1722457624712,0.03572785,64882.0,64881.0,1.37644772]
[1722457624910,0.03572785,64882.0,64881.0,1.06819172]
[1722457624911,0.011559,64882.0,64881.0,1.06819172]
[1722457626382,0.011559,64882.0,64881.0,1.07758095]
[1722457627240,0.011559,64882.0,64881.0,0.76932495]
[1722457627736,0.0131132,64882.0,64881.0,1.07758095]
[1722457627945,0.011559,64882.0,64881.0,1.07758095]
[1722457628364,0.03572774,64882.0,64881.0,1.07758095]
[1722457629384,0.011559,64882.0,64881.0,1.07758095]
[1722457629806,0.011559,64882.0,64881.0,1.38583695]
[1722457630027,0.011559,64882.0,64881.0,1.07758095]
[1722457630650,0.011559,64882.0,64881.0,1.45486175]
[1722457630864,0.009559,64892.0,64888.0,0.03]
[1722457631072,0.009559,64892.0,64888.0,1.0252026]
[1722457631283,0.009559,64892.0,64888.0,3.2416486]
[1722457631490,0.009559,64892.0,64888.0,3.26463001]
[1722457632261,0.009559,64892.0,64888.0,3.27863001]
[1722457632462,0.009559,64892.0,64888.0,3.76598582]
[1722457632667,0.009559,64892.0,64891.0,1.4189388]
[1722457633004,0.009559,64892.0,64891.0,1.79240563]
[1722457633203,0.009559,64892.0,64891.0,0.98316766]
[1722457633404,0.009559,64892.0,64891.0,0.90485983]
[1722457633703,0.009559,64892.0,64891.0,1.52127783]
[1722457633903,0.009559,64892.0,64891.0,1.46528272]
[1722457634104,0.009559,64892.0,64891.0,1.53599126]
[1722457634309,0.009559,64892.0,64891.0,1.46528272]
[1722457634683,0.009559,64892.0,64891.0,1.53599163]
[1722457634882,0.009559,64892.0,64891.0,1.89019943]
[1722457635081,0.009559,64892.0,64891.0,1.87619943]
[1722457635282,0.009559,64892.0,64891.0,2.01689943]
[1722457635485,0.009559,64892.0,64891.0,2.03089943]
[1722457635687,0.009559,64892.0,64891.0,3.50289943]
[1722457636088,0.03372004,64892.0,64891.0,3.55530394]
[1722457636462,0.03372004,64892.0,64891.0,3.81110843]
[1722457636639,0.03372004,64892.0,64891.0,3.82510843]
[1722457636873,0.03372004,64892.0,64891.0,3.51711642]
[1722457637078,0.03372004,64892.0,64891.0,3.51711654]
[1722457637487,0.03372004,64892.0,64891.0,3.82532554]
[1722457637708,0.009559,64892.0,64891.0,3.51711654]
[1722457637922,0.009559,64892.0,64891.0,3.49511774]
[1722457638434,0.009559,64906.0,64905.0,1.178497]
[1722457638646,0.009559,64906.0,64905.0,1.45104872]
[1722457639151,0.009559,64906.0,64905.0,1.75919072]
[1722457639639,0.009559,64906.0,64905.0,1.83456619]
[1722457639862,0.009559,64906.0,64905.0,1.86656496]
[1722457640542,0.009559,64906.0,64905.0,1.96165792]
[1722457640744,0.009559,64906.0,64905.0,1.96965792]
[1722457640943,0.009559,64906.0,64905.0,1.95565792]
[1722457641223,0.009559,64906.0,64905.0,1.96965792]
[1722457641457,0.009559,64906.0,64905.0,2.03125792]
[1722457641883,0.07476412,64921.0,64920.0,0.462106]
[1722457641884,0.02255912,64921.0,64920.0,0.462106]
[1722457642103,0.02255912,64921.0,64920.0,0.91972872]
[1722457642325,0.02255912,64921.0,64920.0,0.61165772]
[1722457642536,0.02255912,64921.0,64920.0,0.30358672]
[1722457643046,0.02255912,64921.0,64920.0,0.61165772]
[1722457643308,0.02255912,64921.0,64920.0,0.32158672]
[1722457643771,0.02255912,64921.0,64920.0,0.62965772]
[1722457644009,0.02255912,64921.0,64920.0,0.16755172]
[1722457644234,0.10668218,64921.0,64920.0,0.018]
[1722457644912,0.10415912,64921.0,64920.0,0.018]
[1722457645145,0.12831596,64921.0,64920.0,0.16355172]
[1722457645629,0.12831596,64921.0,64920.0,0.16855172]
[1722457646113,0.12831596,64921.0,64920.0,0.14955172]
[1722457646352,0.12831596,64921.0,64920.0,0.15055172]
[1722457646586,0.12831596,64921.0,64920.0,0.16455172]
[1722457646817,0.12831596,64921.0,64920.0,0.16355172]
[1722457647063,0.12831596,64921.0,64920.0,0.14955172]
[1722457647802,0.10575684,64921.0,64920.0,0.15855172]
[1722457648289,0.10575684,64921.0,64920.0,0.14955172]
[1722457648750,0.10575684,64921.0,64920.0,0.15055172]
[1722457649225,0.02415684,64921.0,64920.0,0.61165772]
[1722457649430,0.02415684,64921.0,64920.0,0.31458672]
[1722457649634,0.02415684,64921.0,64920.0,0.16055172]
[1722457650248,0.02415684,64921.0,64920.0,0.14955172]
[1722457650447,0.02415684,64921.0,64920.0,0.16355172]
[1722457650576,0.24694402,64921.0,64920.0,0.014]
[1722457650779,0.24694402,64921.0,64891.0,0.1]
[1722457650780,0.0652,64919.0,64891.0,0.1]
[1722457650981,0.07476412,64911.0,64904.0,0.154072]
[1722457651277,0.07476412,64911.0,64905.0,0.14955172]
[1722457651473,0.061,64910.0,64906.0,0.14955172]
[1722457651939,0.0777,64909.0,64906.0,0.14955172]
[1722457653161,0.0777,64909.0,64906.0,0.16355172]
[1722457653965,0.07476412,64908.0,64906.0,0.16355172]
[1722457654630,0.09892397,64908.0,64906.0,0.16755172]
[1722457655170,0.09892397,64908.0,64906.0,0.31761972]
[1722457655380,0.09892397,64908.0,64906.0,0.30361972]
[1722457655586,0.09892397,64908.0,64907.0,1.25101672]
[1722457655587,0.02415985,64908.0,64907.0,1.25101672]
[1722457655795,0.02415985,64908.0,64907.0,1.35409755]
[1722457656058,0.02415985,64908.0,64907.0,3.24360654]
[1722457656283,0.02415985,64908.0,64907.0,2.93547354]
[1722457656989,0.02415985,64908.0,64907.0,2.94947354]
[1722457657226,0.02415985,64908.0,64907.0,3.24360654]
[1722457657963,0.02415985,64908.0,64907.0,3.3659542]
[1722457658630,0.00091301,64911.0,64910.0,1.5185298]
[1722457658902,0.00091301,64911.0,64910.0,2.39273961]
[1722457659442,0.00091301,64911.0,64910.0,2.47243961]
[1722457659983,0.00091301,64911.0,64910.0,2.51072531]
[1722457660189,0.00954801,64932.0,64927.0,1.078133]
[1722457660401,0.00954801,64932.0,64931.0,0.770047]
[1722457660606,0.00954801,64932.0,64931.0,1.35061772]
[1722457661050,0.00954801,64932.0,64931.0,1.49963765]
[1722457661249,0.00954801,64932.0,64931.0,1.11710868]
[1722457661657,0.03369653,64932.0,64931.0,1.11710868]
[1722457662035,0.03369653,64932.0,64931.0,1.42512768]
[1722457662817,0.03369653,64932.0,64931.0,1.49961668]
[1722457663018,0.00954801,64932.0,64931.0,1.53161678]
[1722457663218,0.00954801,64932.0,64931.0,1.87386259]
[1722457663418,0.00954801,64932.0,64931.0,1.85986259]
[1722457663824,0.00954801,64932.0,64931.0,1.87351051]
[1722457664074,0.00954801,64932.0,64931.0,3.35951051]
[1722457664277,0.00954801,64943.0,64942.0,0.11]
[1722457664490,0.00954801,64943.0,64942.0,1.81837394]
[1722457664683,0.00954801,64943.0,64942.0,2.12634094]
[1722457665248,0.00954801,64943.0,64942.0,2.05220272]
[1722457665451,0.00954801,64943.0,64942.0,2.11345103]
[1722457665676,0.00954801,64943.0,64942.0,2.06620272]
[1722457665879,0.00954801,64943.0,64942.0,2.08020272]
[1722457666080,0.00954801,64943.0,64942.0,2.06620272]
[1722457666291,0.00954801,64943.0,64942.0,2.08020272]
[1722457666488,0.00954801,64943.0,64942.0,2.02960272]
[1722457666867,0.00954801,64943.0,64942.0,2.00160272]
[1722457667061,0.00954801,64943.0,64942.0,1.70763572]
[1722457667522,0.00954801,64943.0,64942.0,0.82550172]
[1722457667662,0.00954801,64943.0,64942.0,1.13346872]
[1722457667870,0.00954801,64943.0,64942.0,1.14746872]
[1722457668073,0.00954801,64943.0,64942.0,0.38656176]
[1722457668285,0.07604801,64943.0,64942.0,0.34955172]
[1722457668666,0.07604801,64943.0,64942.0,0.37755172]
[1722457669065,0.07604801,64943.0,64942.0,0.36355172]
[1722457669267,0.07604801,64943.0,64942.0,0.51753472]
[1722457669566,0.07604801,64943.0,64942.0,0.36355172]
[1722457670009,0.07604801,64943.0,64942.0,0.27755172]
[1722457670010,0.18039262,64943.0,64942.0,0.27755172]
[1722457670325,0.18039262,64943.0,64942.0,0.17755172]
[1722457670560,0.18039262,64943.0,64942.0,0.028]
[1722457670781,0.15624801,64943.0,64942.0,0.014]
[1722457671016,0.15624801,64943.0,64942.0,0.02]
[1722457671534,0.0665,64942.0,64931.0,0.25]
[1722457671794,0.07476412,64932.0,64931.0,0.25]
[1722457672028,0.22146412,64932.0,64931.0,0.25]
[1722457672799,0.22146412,64932.0,64931.0,0.39955172]
[1722457673132,0.22146412,64932.0,64931.0,0.41355172]
[1722457673890,0.22146412,64932.0,64931.0,0.264]
[1722457674305,0.22146412,64932.0,64931.0,0.07711968]
[1722457674306,0.28795405,64932.0,64931.0,0.07711968]
[1722457674512,0.29047711,64932.0,64931.0,0.01051968]
[1722457674710,0.29047711,64932.0,64931.0,0.00451968]
[1722457674711,0.76677385,64932.0,64931.0,0.00451968]
[1722457674914,0.76677385,64932.0,64910.0,0.05457487]
[1722457674915,0.0608,64924.0,64910.0,0.05457487]
[1722457675117,0.07476412,64911.0,64910.0,0.05457487]
[1722457675291,0.15056412,64911.0,64910.0,0.05457487]
[1722457675502,0.15056412,64911.0,64905.0,0.061711]
[1722457676260,0.15056412,64911.0,64906.0,0.14955172]
[1722457676672,0.0758,64911.0,64907.0,0.15263279]
[1722457676873,0.0758,64911.0,64908.0,0.1]
[1722457676874,0.07476412,64910.0,64908.0,0.1]
[1722457677079,0.07476412,64910.0,64909.0,0.14955172]
[1722457678277,0.0989219,64910.0,64909.0,0.30361272]
[1722457678498,0.02415778,64910.0,64909.0,0.30361272]
[1722457678737,0.0664,64917.0,64909.0,0.30361272]
[1722457678738,0.0664,64917.0,64910.0,0.308118]
[1722457678940,0.07476412,64911.0,64910.0,0.154059]
[1722457679352,0.07476412,64911.0,64910.0,0.770295]
[1722457679757,0.07476412,64911.0,64910.0,0.462177]
[1722457680053,0.07476412,64911.0,64910.0,0.62272872]
[1722457680324,0.001,64917.0,64916.0,0.154045]
[1722457680664,0.001,64917.0,64916.0,0.14955172]
[1722457681701,0.07728718,64918.0,64916.0,0.14955172]
[1722457682081,0.07728718,64918.0,64910.0,0.019]
[1722457682082,0.02415576,64917.0,64910.0,0.019]
[1722457682328,0.07476412,64911.0,64910.0,0.005]
[1722457682728,0.21776412,64911.0,64910.0,0.005]
[1722457683569,0.22776412,64911.0,64910.0,0.005]
[1722457683804,0.152,64910.0,64892.0,0.00023448]
[1722457684009,0.07476412,64911.0,64892.0,0.00023448]
[1722457684010,0.07476412,64893.0,64892.0,0.00023448]
[1722457684620,0.13596412,64893.0,64892.0,0.00023448]
[1722457685232,0.13596412,64893.0,64892.0,0.1497862]
[1722457685233,0.11782356,64893.0,64892.0,0.1497862]
[1722457685432,0.11782356,64893.0,64892.0,0.1607862]
[1722457685633,0.14198737,64893.0,64892.0,0.1497862]
[1722457685867,0.11782356,64893.0,64892.0,0.1506162]
[1722457686104,0.05662356,64893.0,64892.0,0.1616162]
[1722457686379,0.05662356,64893.0,64892.0,0.1506162]
[1722457686590,0.05662356,64893.0,64892.0,0.1616162]
[1722457686824,0.07476412,64900.0,64892.0,0.1616162]
[1722457687049,0.44858472,64919.0,64897.0,0.154089]
[1722457687050,0.1425,64904.0,64897.0,0.154089]
[1722457687269,0.07476412,64902.0,64898.0,0.14955172]
[1722457687494,0.07476412,64902.0,64892.0,0.01206448]
[1722457687495,0.07476412,64902.0,64899.0,0.14955172]
[1722457687690,0.00252306,64901.0,64900.0,0.14955172]
[1722457688480,0.00252306,64901.0,64892.0,0.00106448]
[1722457688732,0.00252306,64901.0,64892.0,0.01206448]
[1722457688733,0.07476412,64893.0,64892.0,0.01206448]
[1722457688937,0.07476412,64893.0,64892.0,0.00106448]
[1722457689862,0.07476412,64893.0,64892.0,0.01206448]
[1722457690063,0.1425,64904.0,64892.0,0.15369806]
[1722457690271,0.14742306,64910.0,64897.0,0.308177]
[1722457690444,0.001,64901.0,64900.0,0.001]
[1722457690682,0.001,64901.0,64900.0,0.30463472]
[1722457690872,0.07476412,64904.0,64900.0,0.14955172]
[1722457691079,0.07476412,64904.0,64893.0,0.1015542]
[1722457691080,0.07476412,64904.0,64901.0,0.14955172]
[1722457691330,0.07576412,64904.0,64902.0,0.14955172]
[1722457691876,0.07476412,64904.0,64902.0,0.14955172]
[1722457692106,0.07576412,64904.0,64902.0,0.14955172]
[1722457692325,0.09992602,64904.0,64902.0,0.14955172]
[1722457692807,0.09992602,64904.0,64902.0,0.15255172]
[1722457693018,0.00252306,64903.0,64892.0,0.00106448]
[1722457693257,0.00252306,64903.0,64893.0,0.0015542]
[1722457693445,0.00252306,64903.0,64902.0,0.008]
[1722457693816,0.00252306,64903.0,64902.0,0.007]
[1722457694225,0.00352306,64903.0,64902.0,0.007]
[1722457694650,0.00252306,64903.0,64892.0,0.00106448]
[1722457694890,0.00252306,64903.0,64902.0,0.007]
[1722457695102,0.00352306,64903.0,64902.0,0.007]
[1722457695300,0.1471,64902.0,64893.0,0.14955172]
[1722457695418,0.07476412,64894.0,64893.0,0.14955172]
[1722457696580,0.07476412,64894.0,64893.0,0.16355172]
[1722457697539,0.07476412,64894.0,64893.0,0.16338971]
[1722457697765,0.07476412,64894.0,64893.0,0.02]
[1722457698141,0.22116412,64894.0,64893.0,0.02]
[1722457698800,0.22116412,64894.0,64893.0,0.006]
[1722457699007,0.23368718,64894.0,64893.0,0.006]
[1722457699212,0.1623,64893.0,64889.0,0.00083]
[1722457699415,0.1464,64890.0,64889.0,0.00083]
[1722457699623,0.14892306,64890.0,64889.0,0.00083]
[1722457699828,0.20522337,64890.0,64889.0,0.00083]
[1722457700858,0.52761262,64890.0,64889.0,0.00083]
[1722457701272,0.20522337,64890.0,64889.0,0.00083]
[1722457701477,0.20522337,64890.0,64889.0,0.00183]
[1722457702086,0.14892306,64890.0,64889.0,0.00183]
[1722457702291,0.23040236,64890.0,64889.0,0.00283]
[1722457702729,0.17609353,64890.0,64889.0,0.00283]
[1722457702935,0.23240551,64890.0,64889.0,0.00283]
[1722457703140,0.15192306,64890.0,64889.0,0.00283]
[1722457703344,0.3683348,64890.0,64889.0,0.00283]
[1722457703547,0.205731,64890.0,64889.0,0.00283]
[1722457703772,0.20825406,64890.0,64889.0,0.00283]
[1722457704227,0.0841,64890.0,64889.0,0.00283]
[1722457704462,0.0841,64890.0,64889.0,0.15238172]
[1722457704463,0.003,64890.0,64889.0,0.15238172]
[1722457704693,0.003,64890.0,64889.0,0.30649072]
[1722457704926,0.003,64890.0,64889.0,0.61470872]
[1722457705142,0.002,64890.0,64889.0,0.92192672]
[1722457705407,0.002,64890.0,64889.0,1.33014472]
[1722457705672,0.7477,64924.0,64889.0,1.33014472]
[1722457705673,0.078,64913.0,64899.0,0.0632]
[1722457705908,0.07476412,64932.0,64906.0,0.308133]
[1722457705909,0.078,64921.0,64906.0,0.308133]
[1722457706115,0.078,64921.0,64907.0,0.14955172]
[1722457706116,0.07476412,64911.0,64907.0,0.14955172]
[1722457706861,0.07476412,64911.0,64907.0,0.30361672]
[1722457707061,0.07476412,64911.0,64908.0,0.154064]
[1722457707309,0.07476412,64911.0,64909.0,0.30361172]
[1722457707544,0.07476412,64911.0,64909.0,0.14955172]
[1722457707718,0.07476412,64911.0,64909.0,0.30361272]
[1722457707923,0.07476412,64911.0,64909.0,0.14955172]
[1722457708578,0.07476412,64911.0,64910.0,0.154059]
[1722457708796,0.07476412,64911.0,64910.0,0.30361072]
[1722457709202,0.07476412,64911.0,64910.0,0.61172872]
[1722457709411,0.07476412,64911.0,64910.0,0.91984672]
[1722457710039,0.07476412,64918.0,64917.0,0.154042]
[1722457710248,0.07476412,64918.0,64910.0,0.14955172]
[1722457710249,0.02415645,64911.0,64910.0,0.77009286]
[1722457710452,0.07476412,64911.0,64910.0,0.78535756]
[1722457710656,0.02476412,64911.0,64910.0,0.78535756]
[1722457710852,0.04892057,64911.0,64910.0,0.79335756]
[1722457711107,0.02576412,64911.0,64910.0,0.48523956]
[1722457711342,0.02576412,64911.0,64910.0,0.95690928]
[1722457711754,0.02576412,64911.0,64910.0,0.94290928]
[1722457711961,0.001,64911.0,64910.0,1.43722728]
[1722457712162,0.001,64911.0,64910.0,1.85534528]
[1722457712386,0.001,64911.0,64910.0,1.93464528]
[1722457712598,0.001,64911.0,64910.0,3.45664408]
[1722457712805,0.001,64911.0,64910.0,3.43464528]
[1722457712983,0.08052306,64936.0,64924.0,0.462078]
[1722457713208,0.07441445,64925.0,64924.0,0.93494642]
[1722457713730,0.09856586,64925.0,64924.0,1.40619842]
[1722457714000,0.09856586,64925.0,64924.0,1.48549842]
[1722457714861,0.09856586,64925.0,64924.0,1.48749842]
[1722457715508,0.09856586,64925.0,64924.0,1.50149842]
[1722457715923,0.09856586,64925.0,64924.0,1.17944642]
[1722457716120,0.09856586,64925.0,64924.0,1.19144642]
[1722457716546,0.09856586,64925.0,64924.0,2.70444642]
[1722457716950,0.09856586,64925.0,64924.0,2.61214642]
[1722457717154,0.09856586,64925.0,64924.0,2.62214642]
[1722457717570,0.09856586,64925.0,64924.0,2.60814642]
[1722457717771,0.09856586,64925.0,64924.0,2.61214642]
[1722457717970,0.09856586,64925.0,64924.0,2.91919842]
[1722457718423,0.02506442,64925.0,64924.0,3.30163372]
[1722457718755,0.02506442,64925.0,64924.0,3.38613372]
[1722457718756,0.00091301,64925.0,64924.0,3.38613372]
[1722457719171,0.00091301,64925.0,64924.0,3.42013372]
[1722457719383,0.00091301,64925.0,64924.0,3.39313372]
[1722457719615,0.00091301,64925.0,64924.0,3.71418572]
[1722457719822,0.00091301,64925.0,64924.0,3.71618452]
[1722457720028,0.00091301,64925.0,64924.0,3.70318452]
[1722457720466,0.00091301,64925.0,64924.0,3.71718452]
[1722457720678,0.00091301,64925.0,64924.0,3.73118452]
[1722457720898,0.00091301,64925.0,64924.0,4.03923652]
[1722457721098,0.01331424,64943.0,64938.0,1.242351]
[1722457721314,0.01331424,64943.0,64938.0,2.19425342]
[1722457721956,0.01331424,64943.0,64938.0,3.69425342]
[1722457721957,0.09890828,64939.0,64938.0,3.69425342]
[1722457722326,0.07476412,64939.0,64938.0,3.69425342]
[1722457722579,0.07476412,64939.0,64938.0,3.70825342]
[1722457722792,0.07446389,64939.0,64938.0,3.70825342]
[1722457723409,0.07446389,64939.0,64938.0,3.72225342]
[1722457724214,0.07446389,64939.0,64938.0,3.71825342]
[1722457724417,0.07446389,64939.0,64938.0,3.72025222]
[1722457724779,0.07446389,64939.0,64938.0,3.73425222]
[1722457724984,0.07446389,64939.0,64938.0,3.72025222]
[1722457725385,0.01331424,64943.0,64942.0,1.385851]
[1722457725588,0.01331424,64943.0,64942.0,1.73650152]
[1722457725789,0.009559,64945.0,64944.0,1.1098478]
[1722457725965,0.00954801,64947.0,64946.0,0.283974]
[1722457726147,0.00954801,64947.0,64946.0,1.46138642]
[1722457726388,0.00954801,64947.0,64946.0,2.53262922]
[1722457726645,0.07476412,64972.0,64953.0,1.177699]
[1722457726853,0.01207107,64971.0,64953.0,1.15760142]
[1722457727054,0.01207107,64971.0,64953.0,1.20373215]
[1722457727262,0.01207107,64971.0,64953.0,1.46551542]
[1722457727713,0.077,64962.0,64953.0,1.05760142]
[1722457727906,0.077,64962.0,64953.0,1.04860142]
[1722457728104,0.0785,64968.0,64953.0,1.47951542]
[1722457728304,0.0785,64968.0,64953.0,1.49351542]
[1722457728541,0.0785,64968.0,64953.0,1.50249245]
[1722457728978,0.03368705,64954.0,64953.0,1.50249245]
[1722457729222,0.03368705,64954.0,64953.0,1.64569245]
[1722457729434,0.03368705,64954.0,64953.0,1.65569245]
[1722457729664,0.03368705,64954.0,64953.0,1.63169245]
[1722457730247,0.00954801,64954.0,64953.0,1.61769245]
[1722457730461,0.00954801,64954.0,64953.0,1.63069245]